Cogmind - Beta 10.2 @@@ ROGUE MODE // 2021.06.23 @ 21:39:41 Player: Finestep Result: Destroyed by G-47 Trooper with Particle Gun Performance ------------- Evolutions (0) 0 Regions Visited (2) 400 Robots Destroyed (46) 230 Value Destroyed (850) 850 Prototype IDs (2) 40 Alien Tech Used (0) 0 Bonus (0) 0 TOTAL SCORE: 1520 Bonus ------- None Cogmind --------- Core Integrity 0/250 Matter 274/300 Energy 100/100 System Corruption 4% Temperature Cool (9) Movement Walking (180) Ox2 Location -10/Mines Parts ------- > --- POWER (1) -------- (None) > --- PROPULSION (2) --- Aluminum Leg Aluminum Leg > --- UTILITY (2) ------ Medium Storage Unit High-capacity Storage Unit > --- WEAPON (2) ------- Light Assault Rifle Light Cannon > --- INVENTORY (16) --- Light Treads Small Storage Unit Medium Matter Pod (100) Terrain Scanner Improved Terrain Scanner Weapon Shielding Weapon Shielding Thief Drone Bay Heavy EM Pulse Gun Heavy EM Pulse Gun Light Assault Rifle Grenade Launcher Mining Laser Heavy Hammer Peak State ------------ > --- POWER ------------ Ion Engine > --- PROPULSION ------- Light Treads Wheel > --- UTILITY ---------- Medium Storage Unit High-capacity Storage Unit > --- WEAPON ----------- Heavy EM Pulse Gun Light Assault Rifle > --- INVENTORY -------- Small Storage Unit Medium Matter Pod Improved Terrain Scanner Weapon Shielding Weapon Shielding Thief Drone Bay Heavy EM Pulse Gun Heavy EM Pulse Gun Heavy EM Pulse Gun Light Assault Rifle Grenade Launcher Mining Laser Heavy Hammer [Rating: 10] Favorites ----------- Power Light Ion Engine Engine Light Ion Engine Propulsion Light Treads Treads Light Treads Leg Aluminum Leg Wheel Wheel Utility High-capacity Storage Unit Storage High-capacity Storage Unit Weapon Light Assault Rifle Energy Gun Small Laser Energy Cannon Beam Cannon Ballistic Gun Light Assault Rifle Ballistic Cannon Light Cannon Launcher Grenade Launcher Build | -11 -10 -10 ------- Run | Scr Mat Min Slots Evolved . | . . . Power . | . . . Propulsion . | . . . Utility . | . . . Weapon . | . . . Parts Attached 29 | 7 12 10 Power 3 | 1 1 1 Engine 3 | 1 1 1 Core . | . . . Reactor . | . . . Propulsion 6 | 2 . 4 Treads 2 | 2 . . Leg 2 | . . 2 Wheel 2 | . . 2 Hover . | . . . Flight . | . . . Utility 4 | 2 2 . Device . | . . . Storage 4 | 2 2 . Processor . | . . . Hackware . | . . . Protection . | . . . Artifact . | . . . Weapon 16 | 2 9 5 Energy Gun 6 | 2 2 2 Energy Cannon 2 | . 2 . Ballistic Gun 5 | . 3 2 Ballistic Cannon 1 | . . 1 Launcher 2 | . 2 . Special Weapon . | . . . Impact Weapon . | . . . Slashing Weapon . | . . . Piercing Weapon . | . . . Special Melee Weapon . | . . . Unidentified Prototypes . | . . . Parts Lost 15 | . 5 10 Power 3 | . 1 2 Propulsion 3 | . . 3 Utility . | . . . Weapon 9 | . 4 5 Highest Loss Streak 3 | . 2 3 Average Slot Usage (%) 97 | . 99 91 Engine 13 | . 14 8 Treads 24 | . 28 8 Leg 1 | . . 9 Wheel 1 | . . 7 Storage 28 | . 28 28 Energy Gun 7 | . 7 8 Energy Cannon 9 | . 10 4 Ballistic Gun 10 | . 9 13 Naked Turns . | . . . Heaviest Build 49 | 13 47 49 Greatest Support 40 | 40 40 40 Greatest Overweight (x) 4 | . 1 4 Average Overweight (x) 1 | . . 2 Largest Inventory Capacity 16 | 8 16 16 Average Capacity 14 | 6 14 16 Most Carried 15 | 5 15 15 Average Carried 11 | 2 12 12 Final Capacity 16 | 8 16 16 Final Carried 15 | 5 15 14 Class Distribution -------------------- 100% | Mutant Dominant Class ---------------- Mutant | -10/Materials Mutant | -10/Mines Resources | -11 -10 -10 ----------- Run | Scr Mat Min Matter Collected 764 | 270 385 109 Remotely . | . . . Salvage Created 1194 | 189 802 203 Parts 91 | 15 57 19 Haulers Intercepted 1 | . 1 . Recyclers Shooed 1 | 1 . . Parts Field Recycled . | . . . Retrieved Matter . | . . . Parts Self-Destructed . | . . . Prevented . | . . . Kills | -11 -10 -10 ------- Run | Scr Mat Min Combat Hostiles Destroyed 28 | . 20 8 Guns 15 | . 10 5 Cannons 11 | . 8 3 AOE 2 | . 2 . Classes Destroyed 8 | 3 5 . Worker 4 | 2 2 . Tunneler 6 | 4 1 1 Hauler 1 | . 1 . Recycler 1 | 1 . . Operator 5 | . 5 . Watcher 1 | . 1 . Swarmer 12 | . 6 6 Grunt 16 | . 14 2 Best Kill Streak 7 | 7 5 3 Combat Bots Only 4 | . 4 3 Max Kills in Single Turn 1 | 1 1 1 Gunslinging . | . . . Exploded 1 | . 1 . Melee . | . . . Uniques/NPCs Destroyed . | . . . Combat | -11 -10 -10 -------- Run | Scr Mat Min Damage Taken 1402 | . 687 715 Core 252 | . 84 168 Absorbed by Shields . | . . . Core Remaining (%) 100 | 100 . . Volleys Fired 144 | 10 99 35 Largest 2 | 2 2 2 Hottest 100 | 80 100 80 Shots Fired 261 | 20 177 64 Gun 190 | 20 119 51 Cannon 66 | . 53 13 Launcher 5 | . 5 . Special . | . . . Kinetic 86 | . 51 35 Thermal 151 | 20 121 10 Explosive 5 | . 5 . Electromagnetic 19 | . . 19 Robot Hit Streak 9 | 9 9 7 Robot Miss Streak 6 | 2 6 4 Penetration Max . | . . . Secondary Targets . | . . . Shots Hit Robots 143 | 10 98 35 Core Hits 68 | 8 45 15 Critical Hits 1 | . 1 . Critical Kills . | . . . Critical Parts Destroyed 1 | . 1 . Melee Attacks . | . . . Impact . | . . . Slashing . | . . . Piercing . | . . . Sneak Attacks . | . . . Combat Hostiles . | . . . Follow-up Attacks . | . . . Damage Inflicted 2063 | 127 1466 470 Guns 1121 | 127 688 306 Cannons 665 | . 541 124 Explosions 218 | . 178 40 Melee . | . . . Ramming 59 | . 59 . Kinetic 413 | . 258 155 Thermal 1262 | 127 971 164 Explosive 178 | . 178 . Electromagnetic 151 | . . 151 Impact . | . . . Slashing . | . . . Piercing . | . . . Highest Corruption 4 | . 4 4 Average Corruption 3 | . 3 4 Corruption Purged . | . . . Effects 39 | . 32 7 Message Errors 8 | . 5 3 Matter Fused 5 | . 4 1 Heat Flow Errors 5 | . 5 . Energy Discharges 5 | . 3 2 Data Loss (minor) 8 | . 8 . Targeting Errors 6 | . 5 1 Weapon Failures 2 | . 2 . Overload Shots . | . . . Overflow Damage 2 | . . 2 Projectiles 2 | . . 2 Explosions . | . . . Melee . | . . . Knockbacks . | . . . Impact . | . . . Kinetic . | . . . Secondary . | . . . Self-Inflicted Damage 21 | . . 21 Shots 1 | . . 1 Rammed 5 | . 5 . Targets Rammed 6 | . 6 . Kicked . | . . . Crushed 1 | . 1 . Highest Temperature 435 | 90 435 135 Average Temperature 79 | 36 93 39 Received Heat Transfer 465 | . 255 210 Effects 6 | . 6 . Shutdowns 1 | . 1 . Interference 1 | . 1 . Matter Decay 1 | . 1 . Damage (major) 3 | . 3 . Siege Activations . | . . . Robots Corrupted . | . . . Combat Hostiles . | . . . Parts Fried . | . . . Impact Corruptions . | . . . Robots Melted . | . . . Combat Hostiles . | . . . Parts Melted 5 | . 4 1 Heat Transferred 2731 | 300 2122 309 Parts Sabotaged . | . . . Parts Stolen . | . . . Parts Stripped . | . . . Power Chain Reactions 1 | . . 1 Missiles Intercepted . | . . . Alert | -11 -10 -10 ------- Run | Scr Mat Min Peak Influence 295 | 35 293 295 Initial 95 | . 22 95 Average 166 | 14 180 186 Maximum Alert Level 1 | . 1 1 Low Security (%) 59 | 100 53 60 Level 1 40 | . 46 39 Level 2 . | . . . Level 3 . | . . . Level 4 . | . . . Level 5 . | . . . High Security . | . . . Max Security . | . . . Squads Dispatched 6 | . 6 . Investigation 2 | . 2 . Extermination . | . . . Reinforcement 4 | . 4 . Assault . | . . . Garrison . | . . . Intercept . | . . . Construction Impeded . | . . . Haulers Reinforced . | . . . Stealth | -11 -10 -10 --------- Run | Scr Mat Min Distress Signals 5 | . 5 . Communications Jammed . | . . . Distress Signals . | . . . Times Spotted 58 | . 41 17 Peak Tracking Total 5 | . 5 4 Tactical Retreats 6 | . 2 4 Traps | -11 -10 -10 ------- Run | Scr Mat Min Traps Triggered 2 | . 2 . Indirectly . | . . . Trap Hack Attempts . | . . . Triggered . | . . . Disarmed . | . . . Reprogrammed . | . . . Reused . | . . . Traps Extracted . | . . . Installed . | . . . Triggered . | . . . Machines | -11 -10 -10 ---------- Run | Scr Mat Min Machines Disabled 1 | . 1 . Max in Single Turn 1 | . 1 . Machines Sabotaged . | . . . Garrisons Compromised . | . . . Overloaded Fab Kills . | . . . Fab Network Shutdowns . | . . . Hacking | -11 -10 -10 --------- Run | Scr Mat Min Machines Accessed 6 | . 5 1 Terminals 3 | . 3 . Fabricators . | . . . Repair Stations . | . . . Recycling Units 2 | . 2 . Scanalyzers . | . . . Garrison Access . | . . . Total Hacks 20 | . 19 1 Successful 9 | . 8 1 Failed 10 | . 10 . Catastrophic . | . . . Database Lockouts 1 | . 1 . Manual 11 | . 11 . Terminals 12 | . 12 . Fabricators . | . . . Repair Stations . | . . . Recycling Units 7 | . 7 . Scanalyzers . | . . . Garrison Access . | . . . Terminal Hacks 4 | . 3 1 Part Schematic 1 | . 1 . Prototype ID Bank 1 | . 1 . Open Door 1 | . . 1 Zone Layout 1 | . 1 . Fabricator Hacks . | . . . Repair Station Hacks . | . . . Recycling Unit Hacks 1 | . 1 . Retrieve Components 1 | . 1 . Scanalyzer . | . . . Garrison Access Hacks . | . . . Unauthorized Hacks 4 | . 4 . Terminals 2 | . 2 . Track 1 | . 1 . Operators 1 | . 1 . Fabricators . | . . . Repair Stations . | . . . Recycling Units 2 | . 2 . Tunnel 2 | . 2 . Scanalyzers . | . . . Garrison Access . | . . . Data Cores Recovered 1 | . 1 . Used . | . . . Hacking Detections 4 | . 4 . Full Trace Events . | . . . Feedback Events . | . . . Feedback Blocked . | . . . Robot Schematics Acquired . | . . . Robots Built . | . . . Matter . | . . . Time . | . . . Total Robot Build Rating . | . . . Part Schematics Acquired 1 | . 1 . Parts Built . | . . . Matter . | . . . Time . | . . . Total Part Build Rating . | . . . Parts Repaired . | . . . Time . | . . . Parts Recycled . | . . . Recycled Matter . | . . . Retrieved Matter . | . . . Retrieved Components 2 | . 2 . Parts Scanalyzed . | . . . Part Schematics Acquired . | . . . Parts Damaged . | . . . Bothacking | -11 -10 -10 ------------ Run | Scr Mat Min Used RIF Installer . | . . . Robots Hacked . | . . . Non-combat . | . . . Combat . | . . . Robot Hacks Applied . | . . . Relay Couplers Released . | . . . Robots Rewired . | . . . Allies Hacked . | . . . Hacks Repelled . | . . . Allies | -11 -10 -10 -------- Run | Scr Mat Min Total Allies . | . . . Largest Group . | . . . Highest-Rated Group . | . . . Highest-Rated Ally . | . . . Total Orders . | . . . Ally Attacks . | . . . Total Damage . | . . . Kills . | . . . Allies Corrupted . | . . . Allies Melted . | . . . Intel | -11 -10 -10 ------- Run | Scr Mat Min Robot Analysis Total . | . . . Derelict Logs Recovered 1 | . . 1 Drone Launches . | . . . Drone Recoveries . | . . . Exploration | -11 -10 -10 ------------- Run | Scr Mat Min Turns Passed 1893 | 173 1388 332 Spaces Moved 791 | 82 592 117 Core 2 | 2 . . Treads 741 | 80 592 69 Legs 40 | . . 40 Wheels 8 | . . 8 Hover . | . . . Flight . | . . . Fastest Speed 50 | 50 160 120 Average Speed 177 | 157 179 186 Slowest Speed 200 | 160 180 200 Overloaded Moves . | . . . Propulsion Burnouts . | . . . Robots Hopped . | . . . Cave-ins Triggered . | . . . Exploration Rate (%) 39 | 5 90 23 Regions Visited 2 Branch Regions 1 Pre-discovered Areas 2 | . 2 . Known Exits Taken . | . . . Unknown Exits Taken 2 | 1 1 . Scrap Searched 1 | . . 1 Spaces Dug . | . . . Terrain Destroyed 44 | . 38 6 Melee . | . . . Projectile . | . . . AOE 44 | . 38 6 Terrain Rammed . | . . . Walls Destroyed . | . . . Machines Disabled . | . . . Actions | -11 -10 -10 --------- Run | Scr Mat Min Total 1022 | 103 746 173 Wait 18 | . 15 3 Move 789 | 81 591 117 Hop . | . . . Pick Up 29 | 5 17 7 Fast Attach 10 | 7 2 1 Attach 13 | . 4 9 Detach 1 | . . 1 Swap 6 | . 6 . Drop 6 | . 6 . Fire 144 | 10 99 35 Melee . | . . . Ram . | . . . Kick . | . . . Crush 6 | . 6 . Escape Stasis . | . . . Rewire . | . . . Trap . | . . . Miscellaneous . | . . . Route ------- -11/Scrapyard -10/Materials (discovered 5 exits: [*Mat x3] / *Min x2) -10/Mines (discovered 1 exit: [*Mat]) History --------- Turn | Location | Event 20 | -11/Scrapyard | Discovered new exit (range 16) 174 | -11/Scrapyard | Entered Materials 240 | -10/Materials | Central database locked down 313 | -10/Materials | Build established: Mutant 408 | -10/Materials | Discovered new exit (range 3) 531 | -10/Materials | Discovered new exit (range 15) 1037 | -10/Materials | Discovered new exit (range 10) 1092 | -10/Materials | Discovered new exit (range 16) 1442 | -10/Materials | Discovered new exit (range 10) 1562 | -10/Materials | Entered Mines 1598 | -10/Mines | Core integrity fell below 50% 1626 | -10/Mines | Lost 3 parts (1p1n1w) 1665 | -10/Mines | Found the Drone Emporium 1673 | -10/Mines | Learned location of 1 exit from Materials 1681 | -10/Mines | Found Prototype Device 1800 | -10/Mines | Core integrity fell below 20% 1822 | -10/Mines | Discovered new exit (range 8) 1835 | -10/Mines | Lost 3 parts (1p1n1w) 1894 | -10/Mines | Destroyed by G-47 Trooper with Particle Gun Last Messages --------------- 01791_ Lgt. Assault Rifle destroyed. 01793_ Acquired Aluminum Leg. 01794_ Wheel destroyed. 01795_ Acquired 10 matter. 01804_ Ion Engine destroyed. 01810_ S-10 Pest destroyed. 01811_ WSIVKJG%D63DQFYZH4SWM 01813_ Acquired 12 matter. 01822_ EXIT=FOUND 01860_ Searching scrap... 01860_ Found Structural Scanner. 01860_ Found Terrain Scanner. 01860_ Found Lgt. Treads. 01860_ Found Lgt. Cannon. 01860_ Found 29 Matter. 01863_ Acquired Lgt. Treads. 01866_ Acquired Lgt. Cannon. 01875_ Hvy. EM Pulse Gun destroyed. 01890_ S-10 Pest destroyed. 01893_ Acquired Terrain Scanner. Map ----- +----------------------------------------------------+ | ??????######*#??????????????????????????? | | ???????????#%#??????????????????????????? | | ??????????##=##?????????????????????????? | | ??????????#"%"#?????????????????????????? | | ??????????#" "#?????????????????????????? | | ??????????#"="#######???????????????????? | | ??????????## ![! ????????????? | | ???????????##%#######???????????????????? | | ????????????# #?????????????????????????? | | ????????????#*#?????????????????????????? | | ???????######%#?????????????????????????? | | ???????# =#?????????????????????????? | | ???????# ######?????????????????????????? | | ???????# #??????????????????????????????? | | ???????# #????????????????##????????????? | | ???????# ##?????????????? ##???????????? | | ?????### ##????????????? ##??????????? | | ????## #???????????? ???????????? | | ???## #??????????? ????????????? | | ???# ##?????????? ??????????????? | | ???# < #?????????? ???????????????? | | ???## ##????????? #????????????????? | | ????## ##?????????# #?????????????????? | | ?????# ##????????# #??????????????????? | | ?????# t######### g ##?????????????????? | | ?????## ! @%= ##????????????????? | | ??????## % =* #?????????? | | ???????## ######## #??????????? | | ????????###??????? ###??????????? | | ?????????????????? ##????????????? | | ?????????????????? ### ##?????????????? | | ???????????????????##???##??????????????? | | ????????????????????????????????????????? | | ????????????????????????????????????????? | | ????????????????????????????????????????? | | ????????????????????????????????????????? | | ????????????????????????????????????????? | | ????????????????????????????????????????? | | ????????????????????????????????????????? | | ????????????????????????????????????????? | | ????????????????????????????????????????? | | ????????????????????????????????????????? | | ????????????????????????????????????????? | | ????????????????????????????????????????? | | ????????????????????????????????????????? | | | | | | | | | | | +----------------------------------------------------+ Best States ------------- Heat Dissipation 25 Energy Generation 10 Energy Capacity 250 Matter Stores 300 Matter Capacity 300 Sight Range 16 Terrain Scan Density 10 Evasion (%) 40 Recoil Reduction 2 Item Schematics ----------------- Med. Storage Unit | -10/Materials | Hacked Robot Schematics ------------------ None Fabricated ------------ Nothing Alien Tech Used ----------------- None Achievements -------------- None Challenges ------------ None Game ------ Seed MassHellfireGenerator Manual? 0 Play Time 00:10:16 Cumulative 595.5 hours Start 2021.06.23 @ 21:31:30 End 2021.06.23 @ 21:39:41 Sessions 1 Manual Loads 0 Difficulty Rogue Special Mode None Game No. 363 Rogue 363 Adventurer 0 Explorer 0 Win Type - Total 6 Types 4/0/1/0/1/0/0/0/0 Lore% 88 Gallery% 90 Achievement% 71 Wizard Run 0 Options --------- ASCII 0 Keyboard 0 Movement Mouse Keybinds 1 Fullscreen 2 Font 24/Smallcaps Map View 76x50 Tactical HUD 1 Map Filters NONE Filters NONE Steam 1 RUN: 917ceab7-a8e3-4e76-8380-317665569c63